[Event "IV Copa Marcel Duchamp 2020"]
[Site "Montevideo"]
[Date "2020.02.09"]
[Round "2.32"]
[White "Pelaez, Diego"]
[Black "Belistri, Ubaldo"]
[Result "1/2-1/2"]
[ECO "A70"]
[WhiteElo "1607"]
[BlackElo "1877"]
[Annotator "NA RC"]
[PlyCount "73"]
[EventDate "2020.02.08"]
[EventType "swiss"]
[EventCountry "URU"]
[SourceTitle "playchess.com"]
[Source "ChessBase"]
[SourceQuality "1"]
[TimeControl "5400+30"]

{[%evp 8,70,77,53,32767,32767,32767,63,61,32767,50,32767,0,-8,0,0,0,32767,32767,32767,32767,4,9,32767,32767,32767,32767,32767,0,32767,-8,32767,32767,163,170,144,144,32767,32767,160,161,51,47,40,399,160,32767,32767,32767,32767,32767,32767,32767,10,8,8,12,0,0,0,0,0,32767,0,0]} 1. d4 {[%emt 0:02:22]} Nf6 {[%emt 0:00:00]} 2. c4 {[%emt 0:00:27]} c5 {[%emt 0:00:17]} 3. d5 {[%emt 0:00:10]} e6 {[%emt 0:00:33]} 4. Nc3 {[%emt 0:00:16]} exd5 {[%emt 0:00:27]} 5. cxd5 {[%emt 0:00:21]} d6 {[%emt 0:00:25]} 6. e4 {[%emt 0:00:11]} g6 {[%emt 0:00:18]} 7. Nf3 {[%emt 0:01:33]} Bg7 {[%emt 0:00:14]} 8. Bb5+ {[%emt 0:02:13]} Bd7 {[%emt 0:03:16]} 9. Bxd7+ {[%emt 0:06:41]} Nbxd7 {[%emt 0:08:11]} 10. O-O {[%emt 0:00:26]} O-O {[%emt 0:00:26] A70: Modern Benoni: 6 e4 g6 7 Nf3.} 11. Bf4 {[%emt 0:02:57]} Re8 {[%emt 0:02:43]} 12. Re1 {[%emt 0:00:51]} Qb6 {[%emt 0:01:05]} 13. Rb1 {[%emt 0:02:03] [#]} Nh5 $146 {[%emt 0:01:05]} ({Predecessor:} 13... Ng4 14. Nd2 Nge5 15. Qe2 a6 16. Be3 Nf6 17. h3 Qc7 18. f4 Ned7 19. a4 Rab8 {0-1 (54) Straub,N (2316)-Alexandrova,O (2265) Alushta 1999}) 14. Bd2 {[%emt 0:07:09]} Ne5 {[%emt 0:04:40]} 15. Nxe5 {[%emt 0:03:42]} Bxe5 {[%emt 0:00:22]} 16. Qg4 {[%emt 0:05:33]} Qd8 {[%emt 0:06:44]} 17. f4 {[%emt 0:04:14]} Bd4+ {[%emt 0:04:18]} 18. Kh1 {[%emt 0:00:36]} Nf6 {[%emt 0:04:40]} 19. Qf3 {[%emt 0:03:58]} b5 {[%emt 0:03:04]} 20. Nxb5 {[%emt 0:02:50]} Qb6 {[%emt 0:02:33]} 21. Nxd4 {[%emt 0:00:15]} cxd4 {[%emt 0:00:14]} 22. e5 {[%emt 0:01:39]} Nh5 {[%emt 0:03:47]} 23. e6 {[%emt 0:03:09]} f5 {[%emt 0:00:20] [#]} 24. g4 {[%emt 0:11:13]} (24. Red1 $1 $18) 24... fxg4 {[%emt 0:00:45]} 25. Qxg4 {[%emt 0:00:18]} Nf6 $2 {[%emt 0:00:19]} ({Better is} 25... Qb5 $14) 26. Qg2 {[%emt 0:00:30]} (26. Qg5 $18 {and the rest is easy.}) 26... Qb7 {[%emt 0:01:03]} 27. Rg1 {[%emt 0:06:57]} Rac8 {[%emt 0:09:11]} 28. f5 {[%emt 0:06:19]} Rc2 {[%emt 0:02:14]} 29. fxg6 {[%emt 0:01:16]} Qxd5 {[%emt 0:00:22]} 30. gxh7+ {[%emt 0:06:21]} Kxh7 {[%emt 0:01:41]} 31. Qxd5 {[%emt 0:00:37]} Nxd5 {[%emt 0:00:19]} 32. Rg2 {[%emt 0:00:31]} Rxe6 {[%emt 0:00:54]} 33. Rbg1 {[%emt 0:00:29]} Ne3 {[%emt 0:02:42]} 34. Rg7+ {[%emt 0:01:45]} Kh6 {[%emt 0:00:51] [#]} 35. R7g3 $11 {[%emt 0:01:35]} ({White should try} 35. R7g4 $1 $16 {[%cal Rg4h4]} Kh7 36. Rxd4) 35... Kh7 {[%emt 0:02:34]} 36. Rg7+ {[%emt 0:01:05]} Kh6 {[%emt 0:00:21]} 37. R7g3 1/2-1/2

[Event "IV Copa Marcel Duchamp 2020"]
[Site "Montevideo"]
[Date "2020.02.10"]
[Round "4.19"]
[White "Guerrero, Alvaro"]
[Black "Moccero, Eduardo"]
[Result "1-0"]
[ECO "D30"]
[WhiteElo "2094"]
[BlackElo "1926"]
[Annotator "NA RC"]
[PlyCount "47"]
[EventDate "2020.02.08"]
[EventType "swiss"]
[EventCountry "URU"]
[SourceTitle "playchess.com"]
[Source "ChessBase"]
[SourceQuality "1"]
[TimeControl "5400+30"]

{[%evp 8,40,16,8,15,2,0,-6,14,-9,0,-4,1,0,9,10,50,0,0,0,60,84,78,78,135,41,353,374,364,377,379,395,362,388,400]} 1. d4 {[%emt 0:17:21]} d5 {[%emt 0:00:00]} 2. c4 {[%emt 0:00:16]} e6 {[%emt 0:00:00]} 3. Nf3 {[%emt 0:00:21]} c5 {[%emt 0:00:00]} 4. e3 {[%emt 0:00:43]} Nc6 {[%emt 0:00:54]} 5. Nc3 {[%emt 0:00:49]} Nf6 {[%emt 0:00:47]} 6. Bd3 {[%emt 0:00:22]} dxc4 {[%emt 0:02:13]} 7. Bxc4 {[%emt 0:00:04]} cxd4 {[%emt 0:00:46]} 8. exd4 {[%emt 0:00:04]} Be7 {[%emt 0:00:48]} 9. O-O {[%emt 0:00:21]} O-O {[%emt 0:01:31]} 10. Re1 {[%emt 0:00:34]} h6 {[%emt 0:07:07] D40: Queen's Gambit Declined: Semi-Tarrasch with 5 e3.} 11. a3 {[%emt 0:01:42] [#]} Re8 $146 {[%emt 0:04:35]} ({Predecessor:} 11... a6 12. Be3 b5 13. Bd3 Bb7 14. b4 Rc8 15. Rc1 Re8 16. Ne4 Nxe4 17. Bxe4 Ba8 {1-0 (33) Ali,M (1851)-Shafayet,A Dhaka 2015}) 12. Bb3 {[%emt 0:03:04]} Bd6 {[%emt 0:06:39]} 13. Qd3 {[%emt 0:00:46]} Bc5 {[%emt 0:05:21]} (13... Ne7 $11) 14. Be3 {[%emt 0:04:45]} Bb6 {[%emt 0:07:39]} 15. Rad1 {[%emt 0:04:57]} e5 {[%emt 0:01:54] [#]} (15... Bc7 $142) 16. Qc4 {[%emt 0:04:18]} ({White should try} 16. Bxh6 $1 $16 {[%mdl 512]} Be6 (16... gxh6 17. Qg6+) 17. d5 Nxd5 18. Nxd5 (18. Bxd5 gxh6 19. Qe4 Qf6 $16) 18... gxh6 19. Bc2 (19. Nxe5 Bxd5 20. Qg3+ Qg5 $14)) 16... Be6 $2 {[%emt 0:02:11]} ({Black should try} 16... Qe7 $14) 17. d5 {[%emt 0:00:37] Double Attack} Na5 {[%emt 0:01:26]} 18. dxe6 {[%emt 0:07:06]} Nxc4 {[%emt 0:01:50]} 19. Rxd8 {[%emt 0:01:25]} Raxd8 {[%emt 0:01:02]} 20. Bxb6 $18 {[%emt 0:01:00]} ({Don't play} 20. Bxc4 fxe6 21. Bxb6 (21. Nxe5 Bxe3 22. fxe3 Rd2 $18) 21... axb6 $18) 20... axb6 {[%emt 0:00:39]} 21. exf7+ {[%emt 0:00:18]} Kxf7 {[%emt 0:00:07]} 22. Bxc4+ {[%emt 0:00:05]} Kf8 {[%emt 0:01:27]} 23. Nxe5 g5 24. Nd7+ 1-0

[Event "IV Copa Marcel Duchamp 2020"]
[Site "Montevideo"]
[Date "2020.02.10"]
[Round "4.20"]
[White "Vassallo, Mariano"]
[Black "Meza, Anahi"]
[Result "0-1"]
[ECO "B43"]
[WhiteElo "1313"]
[BlackElo "2046"]
[Annotator "NA RC"]
[PlyCount "64"]
[EventDate "2020.02.08"]
[EventType "swiss"]
[EventCountry "URU"]
[SourceTitle "playchess.com"]
[Source "ChessBase"]
[SourceQuality "1"]
[TimeControl "5400+30"]

{[%evp 9,63,17,48,42,53,42,61,41,55,6,25,-9,0,0,15,-32,-26,-41,-37,-43,-56,-49,-47,-53,-47,-75,-60,-79,-84,-118,-98,-82,-46,-50,-50,-137,-70,-147,-148,-149,-159,-162,-160,-170,-167,-481,-500,-738,-774,-1151,-1272,-1733,-1749,-2177,-1594,-29988]} 1. e4 {[%emt 0:00:00]} c5 {[%emt 0:00:00]} 2. Nf3 {[%emt 0:00:00]} e6 {[%emt 0:00:00]} 3. d4 {[%emt 0:00:39]} cxd4 {[%emt 0:00:00]} 4. Nxd4 {[%emt 0:00:29]} a6 {[%emt 0:00:00]} 5. Nc3 {[%emt 0:00:39]} b5 {[%emt 0:00:13]} 6. Bd3 {[%emt 0:01:00]} Qb6 {[%emt 0:00:25]} 7. Nf3 {[%emt 0:03:08]} d6 {[%emt 0:14:47] B43: Sicilian: Kan Variation: 5 Nc3.} 8. O-O {[%emt 0:04:47]} Bb7 {[%emt 0:03:34] [#]} 9. Ne2 $146 {[%emt 0:05:23]} ({Predecessor:} 9. Re1 Nd7 10. a4 b4 11. a5 Qc7 12. Na2 Ngf6 13. Nxb4 d5 14. Nxd5 exd5 15. exd5+ {1-0 (55) Peng,X (2588)-Tong,Y (2502) Chengdu 2009}) 9... Nf6 {[%emt 0:03:56]} 10. Ng3 {[%emt 0:00:54]} Nbd7 {[%emt 0:02:00]} 11. Be3 {[%emt 0:05:53]} Qc7 {[%emt 0:00:57]} 12. h3 {[%emt 0:02:41]} Be7 {[%emt 0:06:15]} 13. Re1 {[%emt 0:03:43]} O-O {[%emt 0:02:18]} 14. c3 {[%emt 0:01:32]} Nc5 {[%emt 0:16:49]} 15. Bxc5 {[%emt 0:04:24]} Qxc5 {[%emt 0:00:33]} 16. Qe2 {[%emt 0:07:54]} Nd7 {[%emt 0:09:16]} 17. Nd4 {[%emt 0:11:01]} Ne5 {[%emt 0:03:12]} 18. Nb3 {[%emt 0:03:33]} Qb6 {[%emt 0:02:09]} 19. Bc2 {[%emt 0:02:49]} Bh4 {[%emt 0:08:53]} 20. Nf1 {[%emt 0:06:06]} Rac8 {[%emt 0:05:41]} ({Black should play} 20... b4 $17 21. Rab1 Rfc8) 21. Ne3 {[%emt 0:03:24]} Bg5 {[%emt 0:05:08]} 22. Qh5 {[%emt 0:04:42]} (22. a3 $15) 22... Bf6 {[%emt 0:00:49]} 23. Ng4 {[%emt 0:02:20]} ({White should play} 23. a3 $15) 23... Nxg4 {[%emt 0:00:38]} 24. Qxg4 {[%emt 0:00:21]} b4 {[%emt 0:00:46]} 25. Re3 {[%emt 0:03:52]} bxc3 {[%emt 0:00:57]} 26. bxc3 {[%emt 0:03:25]} Bxc3 {[%emt 0:02:17]} 27. Rc1 $2 {[%emt 0:06:43]} (27. Rb1 {is more resistant.}) 27... Bb2 {[%emt 0:00:37]} 28. Rg3 {[%emt 0:01:11]} (28. Qd1 $142 Qc7 29. Re2 Bxc1 30. Nxc1) 28... g6 {[%emt 0:00:15]} 29. e5 {[%emt 0:00:53]} Bxc1 {[%emt 0:02:06]} 30. Bxg6 {[%emt 0:00:17]} hxg6 {[%emt 0:01:19]} 31. Qh5 {[%emt 0:00:08]} Be4 {[%emt 0:00:45]} 32. exd6 {[%emt 0:01:23]} Qxd6 {[%emt 0:00:14]} 0-1

[Event "IV Copa Marcel Duchamp 2020"]
[Site "Montevideo"]
[Date "2020.02.10"]
[Round "4.28"]
[White "Silva Rosas, Natalia"]
[Black "Torella, Rodolfo"]
[Result "0-1"]
[ECO "B23"]
[WhiteElo "1787"]
[BlackElo "2081"]
[Annotator "NA RC"]
[PlyCount "78"]
[EventDate "2020.02.08"]
[EventType "swiss"]
[EventCountry "URU"]
[SourceTitle "playchess.com"]
[Source "ChessBase"]
[SourceQuality "1"]
[TimeControl "5400+30"]

{[%evp 8,66,0,-13,16,-28,-29,-18,0,-5,-4,-31,-12,-22,-26,-41,6,0,0,0,0,-6,0,0,49,-14,0,-202,-197,-183,-188,-169,-139,-190,-154,-218,32767,-231,32767,32767,32767,32767,32767,-433,32767,-345,-363,-382,-435,-391,-422,-474,-496,-597,-600,-702,32767,32767,32767,32767,-883]} 1. e4 {[%emt 0:00:00]} c5 {[%emt 0:00:00]} 2. Nc3 {[%emt 0:00:00]} Nc6 {[%emt 0:00:16]} 3. f4 {[%emt 0:00:00]} e6 {[%emt 0:01:23]} 4. Nf3 {[%emt 0:00:00]} a6 {[%emt 0:01:12]} 5. a4 {[%emt 0:00:03]} d6 {[%emt 0:04:41]} 6. Bc4 {[%emt 0:00:22]} Nf6 {[%emt 0:02:18]} 7. d3 {[%emt 0:03:39]} Be7 {[%emt 0:07:36]} 8. O-O {[%emt 0:00:09]} O-O {[%emt 0:00:53]} 9. Qe1 {[%emt 0:00:19]} Nb4 {[%emt 0:06:38] B23: Closed Sicilian: Lines without g3.} 10. Qf2 {[%emt 0:02:21]} Qc7 {[%emt 0:06:20] [#]} 11. e5 $146 {[%emt 0:05:29]} ({Predecessor:} 11. Kh1 Bd7 12. Rg1 Ng4 13. Qe2 Kh8 14. h3 Nf6 15. g4 Bc6 16. g5 Ng8 17. h4 {½-½ (58) Hina,A (1370)-Gade,J (1575) Helsingor 2016}) 11... Nd7 {[%emt 0:04:27]} 12. exd6 {[%emt 0:03:00]} Bxd6 {[%emt 0:00:40]} 13. Ne4 {[%emt 0:00:36]} Be7 {[%emt 0:09:59]} 14. c3 {[%emt 0:00:42]} Nd5 {[%emt 0:00:26]} 15. f5 {[%emt 0:00:51]} N7b6 {[%emt 0:10:45]} 16. Bxd5 {[%emt 0:04:45]} Nxd5 {[%emt 0:03:20]} 17. Bg5 $2 {[%emt 0:04:43]} (17. c4 $11 {and White is okay.} Nf6 18. Nxf6+ Bxf6 19. Be3) 17... f6 {[%emt 0:04:05]} ({Weaker is} 17... exf5 18. Bxe7 Qxe7 19. Nxc5 $11) 18. Bd2 {[%emt 0:02:38]} exf5 {[%emt 0:00:21]} 19. Ng3 {[%emt 0:00:51]} Bd6 {[%emt 0:04:40]} 20. Ne2 {[%emt 0:02:29]} Bd7 {[%emt 0:02:16]} 21. Qh4 {[%emt 0:02:23]} (21. c4 {was necessary.} Ne7 22. Rfc1) 21... Rae8 {[%emt 0:05:09]} 22. Rae1 {[%emt 0:05:12]} Ne3 {[%emt 0:00:03]} 23. Bxe3 {[%emt 0:01:56]} Rxe3 {[%emt 0:02:14]} 24. Nd2 {[%emt 0:02:59]} Rfe8 25. Rf2 {[%emt 0:03:29]} Kh8 {[%emt 0:05:15]} 26. Nf1 {[%emt 0:04:11]} R3e7 {[%emt 0:02:03]} ({Weaker is} 26... Rxd3 27. Qc4 $19) 27. Nfg3 {[%emt 0:00:16]} Bxg3 {[%emt 0:00:29] Pin} 28. hxg3 {[%emt 0:00:19]} Re3 {[%emt 0:01:46]} 29. Qh5 {[%emt 0:01:30]} Qc8 {[%emt 0:02:53]} 30. Rf4 {[%emt 0:02:27]} g6 {[%emt 0:01:18]} 31. Qh6 {[%emt 0:01:28]} Rxe2 {[%emt 0:01:14]} 32. Rxe2 {[%emt 0:00:21]} Rxe2 {[%emt 0:00:03]} 33. Rh4 {[%emt 0:00:26]} Qg8 $19 {[%emt 0:00:33]} 34. b4 {[%emt 0:00:45]} cxb4 {[%emt 0:01:17]} 35. Kf1 {[%emt 0:00:13]} Re8 {[%emt 0:01:10]} 36. cxb4 {[%emt 0:00:35]} Bxa4 {[%emt 0:01:03]} 37. Qc1 {[%emt 0:00:43]} Bb5 {[%emt 0:00:42]} 38. Qc3 {[%emt 0:00:10]} Qe6 {[%emt 0:00:15]} 39. Kg1 {[%emt 0:01:10]} Qe1+ {[%emt 0:00:10]} 0-1

[Event "IV Copa Marcel Duchamp 2020"]
[Site "Montevideo"]
[Date "2020.02.10"]
[Round "4.30"]
[White "Pichuaga, Juan Pablo"]
[Black "Vieira, Alexandre Letizio"]
[Result "1-0"]
[ECO "B24"]
[WhiteElo "2030"]
[BlackElo "1722"]
[Annotator "NA RC"]
[PlyCount "87"]
[EventDate "2020.02.08"]
[EventType "swiss"]
[EventCountry "URU"]
[SourceTitle "playchess.com"]
[Source "ChessBase"]
[SourceQuality "1"]
[TimeControl "5400+30"]

{[%evp 14,87,18,12,20,25,49,0,-5,24,31,31,47,31,38,45,54,49,54,40,139,41,211,217,1262,329,313,311,289,304,347,357,361,350,815,320,312,318,350,32767,32767,32767,32767,32767,32767,412,439,488,460,431,497,581,365,818,739,32767,32767,32767,32767,484,298,413,339,508,768,533,32767,32767,32767,32767,12837,580,502,489,1185,1153]} 1. e4 {[%emt 0:00:00]} c5 {[%emt 0:00:00]} 2. Nc3 {[%emt 0:00:00]} Nc6 {[%emt 0:00:00]} 3. g3 {[%emt 0:00:00]} g6 {[%emt 0:00:02]} 4. Bg2 {[%emt 0:00:00]} Bg7 {[%emt 0:00:04]} 5. d3 {[%emt 0:00:00]} e6 {[%emt 0:00:38]} 6. Be3 {[%emt 0:00:04]} b6 {[%emt 0:00:25]} 7. Qd2 {[%emt 0:00:14]} Bb7 {[%emt 0:00:19]} 8. Nge2 {[%emt 0:00:25]} a6 {[%emt 0:02:37] B24: Closed Sicilian: 3 g3 sidelines.} 9. O-O {[%emt 0:02:37]} Nge7 {[%emt 0:00:37]} 10. d4 {[%emt 0:02:39]} cxd4 {[%emt 0:01:29]} 11. Nxd4 {[%emt 0:01:04] [#]} O-O $146 {[%emt 0:02:17]} ({Predecessor:} 11... Ne5 12. Qe2 Rc8 13. Nd1 Nc4 14. c3 O-O 15. Bg5 f6 16. Bc1 e5 17. Nc2 b5 {½-½ (40) Aleksic,Z (1960)-Varjas,S (2060) Senta 2011}) 12. f4 {[%emt 0:03:42]} Nxd4 {[%emt 0:02:16]} 13. Bxd4 {[%emt 0:00:18]} Qc7 {[%emt 0:03:50]} 14. Bxg7 {[%emt 0:02:37]} Kxg7 {[%emt 0:00:07]} 15. Rad1 {[%emt 0:00:28]} Bc6 {[%emt 0:02:03]} 16. Rf2 {[%emt 0:05:43]} f5 {[%emt 0:02:07] [#]} (16... Rad8 $14) 17. Nd5 {[%emt 0:13:24]} (17. exf5 $1 $16 Nxf5 18. Bxc6 dxc6 19. Ne4) 17... Qd8 $2 {[%emt 0:13:16]} (17... exd5 $14 18. exd5 {[#]} Nxd5 $1 {[%mdl 512]} 19. Bxd5 Rae8) 18. Qd4+ {[%emt 0:01:26]} Kh6 $2 {[%emt 0:03:22]} (18... Kg8) 19. Nxb6 $2 {[%emt 0:02:21]} (19. g4 fxg4 20. Ne3) 19... Rb8 {[%emt 0:00:12]} 20. Nxd7 {[%emt 0:00:53]} Bxd7 {[%emt 0:02:24]} 21. Qxd7 {[%emt 0:01:08]} Qxd7 {[%emt 0:00:08]} 22. Rxd7 {[%emt 0:00:06]} Ng8 {[%emt 0:00:17]} 23. b3 {[%emt 0:00:57]} fxe4 $2 {[%emt 0:00:50]} (23... Nf6) 24. Bxe4 {[%emt 0:01:14]} (24. g4 $142 Nf6 25. g5+ {[%mdl 64] Double Attack} Kh5 26. gxf6) 24... Nf6 {[%emt 0:00:06]} 25. Rd4 {[%emt 0:00:13]} Rfd8 {[%emt 0:00:24]} 26. Rfd2 {[%emt 0:01:14]} Rxd4 {[%emt 0:00:06]} 27. Rxd4 {[%emt 0:00:06]} Nxe4 {[%emt 0:00:36]} 28. Rxe4 {[%emt 0:00:08]} Rb6 {[%emt 0:00:04]} 29. Kf2 {[%emt 0:00:35]} g5 {[%emt 0:00:06]} 30. Ke3 {[%emt 0:00:25]} Kg6 {[%emt 0:00:26]} 31. Kd4 {[%emt 0:00:55]} gxf4 {[%emt 0:00:24]} 32. Rxf4 {[%emt 0:01:07]} Rd6+ {[%emt 0:00:04]} 33. Ke5 {[%emt 0:01:06]} Rd2 {[%emt 0:00:06]} 34. Kxe6 {[%emt 0:00:31]} Rxc2 {[%emt 0:00:16]} 35. Rg4+ {[%emt 0:00:26]} Kh5 {[%emt 0:00:27]} 36. Ra4 {[%emt 0:01:59]} Rxh2 {[%emt 0:00:13]} 37. Kf6 {[%emt 0:05:51]} (37. Kf5 $142 h6 {[#]} 38. Rh4+ $1 {[%mdl 512]} Rxh4 39. gxh4 Kxh4 40. b4 Kg3 41. a4 (41. Kg6 Kf4 $11) 41... Kh3 42. b5) 37... Rh3 {[%emt 0:01:29]} 38. g4+ {[%emt 0:00:30]} Kh6 {[%emt 0:01:07]} (38... Kh4 $142 39. g5+ (39. Rxa6 Kxg4 40. Ra4+ Kf3 $16) 39... Kh5) 39. Rxa6 {[%emt 0:13:29]} (39. Ra5 $142 Rf3+ 40. Rf5) 39... Rf3+ {[%emt 0:01:09]} 40. Ke5+ {[%emt 0:00:07]} Kg5 {[%emt 0:00:21]} 41. Ra7 {[%emt 0:00:25]} Rf2 {[%emt 0:01:15]} 42. Rxh7 {[%emt 0:07:53]} Rxa2 {[%emt 0:00:21]} 43. Kd4 {[%emt 0:00:55]} Kxg4 {[%emt 0:00:12]} 44. Rf7 $18 {[%emt 0:00:10]} (44. b4 $142 Kf5 45. Re7) 1-0

[Event "IV Copa Marcel Duchamp 2020"]
[Site "Montevideo"]
[Date "2020.02.10"]
[Round "4.31"]
[White "Escofet, Jaime"]
[Black "Manteiga, Franco"]
[Result "1/2-1/2"]
[ECO "A01"]
[WhiteElo "2025"]
[BlackElo "1703"]
[Annotator "NA RC"]
[PlyCount "53"]
[EventDate "2020.02.08"]
[EventType "swiss"]
[EventCountry "URU"]
[SourceTitle "playchess.com"]
[Source "ChessBase"]
[SourceQuality "1"]
[TimeControl "5400+30"]

{[%evp 8,54,13,10,2,16,12,10,12,2,8,-19,-2,-22,-22,-33,-30,-25,-33,-31,-39,-41,-43,-38,-41,-46,-41,-70,-58,-69,-65,-72,-81,-70,-83,-79,-66,-333,-345,-299,-357,-358,0,0,0,-94,-60,-98,-62]} 1. b3 {[%emt 0:00:00]} d5 {[%emt 0:00:00]} 2. Bb2 {[%emt 0:00:00]} Nf6 {[%emt 0:00:10]} 3. Nf3 {[%emt 0:00:00]} Bf5 {[%emt 0:01:57]} 4. g3 {[%emt 0:00:03]} e6 {[%emt 0:00:48]} 5. Bg2 {[%emt 0:00:17]} Be7 {[%emt 0:02:08]} 6. d3 {[%emt 0:00:08]} O-O {[%emt 0:01:00]} 7. Nbd2 {[%emt 0:00:14]} c5 {[%emt 0:04:35]} 8. O-O {[%emt 0:00:27]} Nc6 {[%emt 0:00:31]} 9. h3 {[%emt 0:01:10] A07: Réti Opening: New York and Capablanca Systems.} h6 {[%emt 0:03:46]} 10. Re1 {[%emt 0:03:18]} Qc7 {[%emt 0:05:17]} 11. e4 {[%emt 0:10:09]} dxe4 {[%emt 0:04:48]} 12. dxe4 {[%emt 0:00:06]} Bh7 {[%emt 0:01:10]} 13. a3 {[%emt 0:04:14]} Rad8 {[%emt 0:09:31]} 14. Qe2 {[%emt 0:02:32] [#]} Rd7 $146 {[%emt 0:07:42]} ({Predecessor:} 14... Nd4 15. Nxd4 cxd4 16. e5 Ne8 17. Be4 Bxe4 18. Qxe4 d3 19. c4 b5 20. Rac1 b4 21. axb4 Bxb4 {1-0 (41) Kovacs,A (2049)-Katona,J (1997) Hungary 2004}) 15. e5 {[%emt 0:10:42]} Nd5 {[%emt 0:01:07]} 16. Ne4 {[%emt 0:00:34]} Rfd8 {[%emt 0:10:26]} 17. Kh2 {[%emt 0:24:42]} Qb6 {[%emt 0:12:40]} 18. Nfd2 {[%emt 0:06:45]} Nd4 {[%emt 0:07:39]} 19. Nc4 {[%emt 0:03:24]} Qc7 {[%emt 0:07:57]} 20. Bxd4 {[%emt 0:02:44]} cxd4 {[%emt 0:00:09]} 21. a4 {[%emt 0:04:51]} Nb4 {[%emt 0:07:25]} 22. Qg4 $2 {[%emt 0:03:10]} (22. Rf1 $15) 22... Nxc2 {[%emt 0:03:41] Double Attack} 23. Nf6+ {[%emt 0:00:05]} Bxf6 {[%emt 0:00:31]} 24. exf6 {[%emt 0:00:08] [#]} g6 $2 {[%emt 0:01:25]} (24... Bg6 $1 $19 25. h4 Nxa1) 25. Qh4 {[%emt 0:01:23]} Qc5 $1 {[%emt 0:02:04]} 26. Re5 {[%emt 0:00:28]} (26. Qxh6 $11 {remains equal.} Qf8 27. Qd2) 26... Qf8 {[%emt 0:01:06]} 27. Rd1 $17 1/2-1/2

[Event "IV Copa Marcel Duchamp 2020"]
[Site "Montevideo"]
[Date "2020.02.10"]
[Round "4.32"]
[White "Maestro, Esteban"]
[Black "Dotta, Gian Franco"]
[Result "0-1"]
[ECO "B32"]
[WhiteElo "1571"]
[BlackElo "2000"]
[Annotator "NA RC"]
[PlyCount "86"]
[EventDate "2020.02.08"]
[EventType "swiss"]
[EventCountry "URU"]
[SourceTitle "playchess.com"]
[Source "ChessBase"]
[SourceQuality "1"]
[TimeControl "5400+30"]

{[%evp 9,85,40,53,49,46,43,56,18,57,46,48,47,57,33,58,24,38,22,22,33,28,14,18,-31,-16,-26,-31,-32,-36,-33,-27,-38,-37,-102,-87,-204,-164,-183,-150,-174,-185,-201,-179,-175,-134,-187,-189,-189,-66,-131,-97,-80,-56,-180,-118,-72,0,-212,-424,-414,-256,-256,-8,-8,-14,0,0,0,-26,32767,32767,32767,32767,32767,32767,32767,-29985,-29985]} 1. e4 {[%emt 0:00:00]} c5 {[%emt 0:04:07]} 2. Nf3 {[%emt 0:00:00]} Nc6 {[%emt 0:00:06]} 3. d4 {[%emt 0:00:00]} cxd4 {[%emt 0:00:05]} 4. Nxd4 {[%emt 0:00:00]} Qb6 {[%emt 0:00:04]} 5. Nb3 {[%emt 0:00:29]} Nf6 {[%emt 0:00:09]} 6. Nc3 {[%emt 0:00:34]} e6 {[%emt 0:00:18]} 7. Be3 {[%emt 0:00:21]} Qc7 {[%emt 0:00:25]} 8. Bd3 {[%emt 0:01:23]} Be7 {[%emt 0:00:38]} 9. f4 {[%emt 0:01:09]} d6 {[%emt 0:00:24]} 10. Qf3 {[%emt 0:00:56]} a6 {[%emt 0:03:10]} 11. O-O {[%emt 0:00:45]} O-O {[%emt 0:00:35]} 12. Rae1 {[%emt 0:07:58]} Nb4 {[%emt 0:20:11]} 13. Nd4 {[%emt 0:07:06] [#] B33: Sicilian: Pelikan and Sveshnikov Variations.} b5 $146 {[%emt 0:03:28]} ({Predecessor:} 13... Re8 14. a3 Nxd3 15. cxd3 b5 16. Rc1 Qb7 17. f5 e5 18. Nb3 a5 19. g4 b4 20. axb4 axb4 {½-½ (79) Purtov,A (2427)-Shcherbakov,R (2539) Omsk 2001}) 14. a3 {[%emt 0:01:49]} Nxd3 15. cxd3 {[%emt 0:00:58]} Bb7 {[%emt 0:05:22]} 16. f5 {[%emt 0:10:17]} ({White should play} 16. Rc1 $11) 16... e5 {[%emt 0:06:51]} 17. Nde2 {[%emt 0:06:45]} Rfd8 {[%emt 0:04:03]} 18. Rc1 {[%emt 0:01:46]} Qd7 {[%emt 0:06:13]} 19. Nd5 {[%emt 0:11:17]} Nxd5 {[%emt 0:01:17]} 20. exd5 {[%emt 0:00:05]} a5 {[%emt 0:02:07]} 21. b3 {[%emt 0:04:33]} (21. Nc3 $15) 21... Rdc8 {[%emt 0:01:42]} 22. g4 {[%emt 0:05:17]} (22. b4 $17) 22... Rxc1 {[%emt 0:01:20]} 23. Rxc1 {[%emt 0:00:11]} Rc8 {[%emt 0:00:12]} 24. g5 {[%emt 0:05:16]} Rxc1+ {[%emt 0:01:12]} 25. Nxc1 {[%emt 0:01:38]} Bd8 {[%emt 0:04:27]} 26. h4 {[%emt 0:08:23]} Ba8 {[%emt 0:02:26]} (26... Qc8 $19 27. f6 Qc3) 27. h5 {[%emt 0:08:07]} (27. Kf2 $17 {was called for.}) 27... Qb7 {[%emt 0:01:08]} 28. Kf2 {[%emt 0:06:05]} Bb6 {[%emt 0:00:54]} (28... Qxd5 $19 29. Qxd5 Bxd5) 29. h6 {[%emt 0:04:01]} (29. f6 $15) 29... Bxe3+ {[%emt 0:00:34]} 30. Qxe3 {[%emt 0:00:32]} Qxd5 {[%emt 0:02:00]} 31. Ke2 {[%emt 0:03:11]} (31. Ne2 $17 {keeps fighting.}) 31... Qc5 {[%emt 0:00:56]} ({Black should play} 31... Qg2+ $19 32. Ke1 gxh6 33. gxh6 Bd5) 32. f6 {[%emt 0:03:05]} g6 {[%emt 0:01:10]} (32... gxf6 $17 33. gxf6 Kf8) 33. Qxc5 $2 {[%emt 0:01:08]} (33. d4 $1 $11 {and White is okay.} Qc2+ 34. Ke1) 33... dxc5 {[%emt 0:00:06]} 34. Ke3 {[%emt 0:00:12]} b4 {[%emt 0:00:19]} 35. axb4 {[%emt 0:00:22]} axb4 $2 {[%emt 0:02:02]} (35... cxb4 $19 36. d4 e4) 36. Ne2 {[%emt 0:01:19]} Bd5 {[%emt 0:00:10]} 37. Ng3 $1 {[%emt 0:00:37]} Bxb3 {[%emt 0:01:48]} (37... Kf8 $5 38. Ne4 $8 Bxb3 39. Nxc5 Ba2 $11) 38. Ne4 {[%emt 0:00:35]} c4 {[%emt 0:01:10]} 39. dxc4 {[%emt 0:00:09]} Bxc4 {[%emt 0:00:10]} 40. Nd2 {[%emt 0:00:57]} Bd5 {[%emt 0:00:09]} 41. Kd3 {[%emt 0:00:20]} Kf8 {[%emt 0:00:12]} 42. Nc4 {[%emt 0:00:27]} e4+ {[%emt 0:00:47]} 43. Kd4 {[%emt 0:00:24]} Bxc4 {[%emt 0:00:05]} 0-1